Cogmind - Beta 16.1 @@@ ROGUE MODE // 2026.02.14 @ 19:43:47 Player: Hazmat Result: Destroyed by G-34 Mercenary with Small Laser Performance ------------- Evolutions (0) 0 Regions Visited (1) 200 Robots Destroyed (13) 65 Value Destroyed (287) 287 Prototype IDs (0) 0 Alien Tech Used (0) 0 Bonus (0) 0 TOTAL SCORE: 552 Bonus ------- None Cogmind --------- Core Integrity 0/250 Matter 300/300 Energy 100/100 System Corruption 3% Temperature Cool (6) Movement Core (100) Ox1 Location -10/Materials Parts ------- > --- POWER (1) -------- (None) > --- PROPULSION (2) --- Wheel > --- UTILITY (2) ------ Small Storage Unit > --- WEAPON (2) ------- (None) > --- INVENTORY (8) ---- Compact Wheel Visual Processing Unit Seismic Detector Peak State ------------ > --- POWER ------------ Ion Engine > --- PROPULSION ------- Wheel Wheel > --- UTILITY ---------- Small Storage Unit Improved Terrain Scanner > --- WEAPON ----------- Medium Laser Assault Rifle > --- INVENTORY -------- Compact Wheel [Rating: 9] Favorites ----------- Power Ion Engine Engine Ion Engine Propulsion Wheel Wheel Wheel Utility Small Storage Unit Device Improved Terrain Scanner Storage Small Storage Unit Weapon Medium Laser Energy Gun Medium Laser Ballistic Gun Assault Rifle Build | -11 -10 ------- Run | Yrd Mat Slots Evolved . | . . Power . | . . Propulsion . | . . Utility . | . . Weapon . | . . Parts Attached 11 | 8 3 Power 1 | 1 . Engine 1 | 1 . Core . | . . Reactor . | . . Propulsion 6 | 3 3 Treads . | . . Leg . | . . Wheel 6 | 3 3 Hover . | . . Flight . | . . Utility 2 | 2 . Device 1 | 1 . Storage 1 | 1 . Processor . | . . Hackware . | . . Protection . | . . Artifact . | . . Weapon 2 | 2 . Energy Gun 1 | 1 . Energy Cannon . | . . Ballistic Gun 1 | 1 . Ballistic Cannon . | . . Launcher . | . . Special Weapon . | . . Impact Weapon . | . . Slashing Weapon . | . . Piercing Weapon . | . . Special Melee Weapon . | . . Unidentified Prototypes . | . . Parts Lost 8 | . 8 Power 1 | . 1 Propulsion 4 | . 4 Utility 1 | . 1 Weapon 2 | . 2 Highest Loss Streak 8 | . 8 To Critical Strikes . | . . Average Backups 4 | 1 5 Power . | . . Propulsion 2 | . 3 Utility 1 | . 1 Weapon . | . . Tool/Special . | . . Unused Backups 2 | . 2 Power . | . . Propulsion . | . . Utility 2 | . 2 Weapon . | . . Tool/Special . | . . Average Slot Usage (%) 85 | . 85 Engine 11 | . 11 Wheel 24 | . 24 Device 10 | . 10 Storage 14 | . 14 Energy Gun 12 | . 12 Ballistic Gun 11 | . 11 Peak Build Rating 9 | 9 9 Average Rating 7 | 6 7 On Entrance 4 | . 9 Avg Prop Armor Cover (%) . | . . Naked Turns . | . . Heaviest Build 15 | 15 15 Greatest Support 26 | 26 20 Greatest Overweight (x) 2 | . 2 Average Overweight (x) . | . . Largest Inventory Capacity 8 | 8 8 Average Capacity 7 | 7 8 Most Carried 6 | 5 6 Average Carried 4 | 1 5 Final Capacity 8 | 8 8 Final Carried 5 | 5 3 Class Distribution -------------------- 100% | Mutant Dominant Class ---------------- Mutant | -10/Materials Resources | -11 -10 ----------- Run | Yrd Mat Matter Collected 375 | 307 68 Remotely . | . . Salvage Created 484 | 177 307 Parts 32 | 17 15 Haulers Intercepted . | . . Recyclers Shooed . | . . Parts Field Recycled . | . . Retrieved Matter . | . . Parts Self-Destructed . | . . Prevented . | . . Parts Restored . | . . Kills | -11 -10 ------- Run | Yrd Mat Combat Hostiles Destroyed 6 | . 6 Melee 1 | . 1 Guns 5 | . 5 Classes Destroyed 4 | 2 2 Tunneler 5 | 5 . Recycler 1 | 1 . Watcher 1 | . 1 Grunt 6 | . 6 Best Kill Streak 4 | 4 2 Combat Bots Only 2 | . 2 Max Kills in Single Turn 1 | 1 1 Gunslinging . | . . Exploded . | . . Melee 1 | . 1 Uniques/NPCs Destroyed . | . . Combat | -11 -10 -------- Run | Yrd Mat Hostile Shots Fired 81 | . 81 Missed 23 | . 23 Hits 58 | . 58 Projectile 58 | . 58 Critical Strikes 1 | . 1 Damage Taken 736 | . 736 Core 250 | . 250 Absorbed by Shields . | . . Core Remaining (%) 100 | 100 . Volleys Fired 38 | 9 29 Largest 2 | 2 2 Hottest 70 | 70 70 Shots Fired 70 | 18 52 Gun 70 | 18 52 Cannon . | . . Launcher . | . . Special . | . . Kinetic 33 | 9 24 Thermal 37 | 9 28 Explosive . | . . Electromagnetic . | . . Robot Hit Streak 10 | 10 7 Robot Miss Streak 3 | 1 3 Penetration Max . | . . Secondary Targets 2 | . 2 Max Gunslinging Chain 1 | . 1 Shots Hit Robots 43 | 11 32 Core Hits 25 | 7 18 Critical Kills . | . . Critical Parts Destroyed . | . . Critical Strikes 2 | 1 1 Burn 2 | 1 1 Melee Attacks . | . . Impact . | . . Slashing . | . . Piercing . | . . Sneak Attacks . | . . Combat Hostiles . | . . Follow-up Attacks . | . . Damage Inflicted 650 | 154 496 Guns 575 | 154 421 Cannons . | . . Explosions . | . . Melee . | . . Ramming 75 | . 75 Kinetic 236 | 53 183 Thermal 339 | 101 238 Explosive . | . . Electromagnetic . | . . Impact . | . . Slashing . | . . Piercing . | . . Highest Corruption 3 | . 3 Average Corruption 1 | . 1 Corruption Purged . | . . Corruption Blocked . | . . Overload Shots . | . . Overflow Damage . | . . Projectiles . | . . Explosions . | . . Melee . | . . Knockbacks 1 | . 1 Impact 1 | . 1 Kinetic . | . . Secondary . | . . Self-Inflicted Damage 30 | . 30 Shots . | . . Rammed 39 | . 39 Targets Rammed 39 | . 39 Kicked . | . . Crushed . | . . Highest Temperature 151 | 54 151 Average Temperature 53 | 23 62 Received Heat Transfer 396 | . 396 Siege Activations . | . . Martial Activations . | . . Shielding Activations . | . . Robots Disrupted . | . . Combat Hostiles . | . . Robots Corrupted . | . . Combat Hostiles . | . . Parts Fried . | . . Impact Corruptions . | . . Robots Melted . | . . Combat Hostiles . | . . Parts Melted 3 | 2 1 Heat Transferred 1147 | 370 777 Parts Sabotaged . | . . Parts Stolen . | . . Parts Stripped . | . . Power Chain Reactions . | . . Alert | -11 -10 ------- Run | Yrd Mat Maximum Alert Level . | . . Low Security (%) 100 | 100 100 Level 1 . | . . Level 2 . | . . Level 3 . | . . Level 4 . | . . Level 5 . | . . High Security . | . . Max Security . | . . Peak Influence 105 | 15 105 Initial 3 | . 3 Average 19 | 4 25 Influence Increases 202 | 30 172 Destroy 0b10 Robot/C 120 | . 120 Destroy 0b10 Robot/NC 35 | 30 5 Destroy Leader 32 | . 32 Lose Combat Pursuer 15 | . 15 Influence Decreases 187 | 25 162 Entered New Map 2 | . 2 Time Decay 105 | 25 80 Lost Part 80 | . 80 Squads Dispatched 1 | . 1 Investigation . | . . Extermination . | . . Reinforcement 1 | . 1 Assault . | . . Garrison . | . . Intercept . | . . Searches Triggered . | . . Construction Impeded . | . . Haulers Reinforced . | . . Active Scanning Responses . | . . Cargo Convoy Interrupts . | . . Stealth | -11 -10 --------- Run | Yrd Mat Distress Signals 1 | . 1 Communications Jammed . | . . Distress Signals . | . . Times Spotted 10 | . 10 Peak Tracking Total 4 | . 4 Tactical Retreats 1 | . 1 Traps | -11 -10 ------- Run | Yrd Mat Traps Triggered . | . . Indirectly . | . . Trap Hack Attempts . | . . Triggered . | . . Disarmed . | . . Reprogrammed . | . . Reused . | . . Traps Extracted . | . . Installed . | . . Triggered . | . . Machines | -11 -10 ---------- Run | Yrd Mat Machines Disabled . | . . Max in Single Turn . | . . Machines Repaired . | . . Machines Dismantled . | . . Machines Sabotaged . | . . Overloaded Fab Kills . | . . Hacking | -11 -10 --------- Run | Yrd Mat Machines Accessed 3 | . 3 Terminals 3 | . 3 Fabricators . | . . Repair Stations . | . . Recycling Units . | . . Scanalyzers . | . . Garrison Access . | . . Total Hacks 9 | . 9 Successful 1 | . 1 Failed 8 | . 8 Catastrophic 3 | . 3 Database Lockouts . | . . Manual 6 | . 6 Terminals 9 | . 9 Fabricators . | . . Repair Stations . | . . Recycling Units . | . . Scanalyzers . | . . Garrison Access . | . . Terminal Hacks 1 | . 1 Zone Layout 1 | . 1 Fabricator Hacks . | . . Repair Station Hacks . | . . Recycling Unit Hacks . | . . Scanalyzer . | . . Garrison Access Hacks . | . . Unauthorized Hacks . | . . Terminals . | . . Fabricators . | . . Repair Stations . | . . Recycling Units . | . . Scanalyzers . | . . Garrison Access . | . . Data Cores Recovered . | . . Used . | . . Hacking Detections 3 | . 3 Full Trace Events . | . . Feedback Events . | . . Feedback Blocked . | . . Robot Schematics Acquired . | . . Robots Built . | . . Authchips . | . . Time . | . . Total Robot Build Rating . | . . Part Schematics Acquired . | . . Parts Built . | . . Authchips . | . . Time . | . . Total Part Build Rating . | . . Part Studies Acquired . | . . Parts Repaired . | . . Time . | . . Parts Recycled . | . . Recycled Matter . | . . Retrieved Matter . | . . Retrieved Components . | . . Parts Scanalyzed . | . . Part Schematics Acquired . | . . Parts Damaged . | . . Bothacking | -11 -10 ------------ Run | Yrd Mat Used RIF Installer . | . . Robots Hacked . | . . Non-combat . | . . Combat . | . . Robot Hacks Applied . | . . Relay Couplers Released . | . . Fabnet Peak Effective % . | . . Robots Rewired . | . . Allies Hacked . | . . Hacks Repelled . | . . Allies | -11 -10 -------- Run | Yrd Mat Total Allies . | . . Largest Group . | . . Highest-Rated Group . | . . Highest-Rated Ally . | . . Total Orders . | . . Ally Attacks . | . . Total Damage . | . . Kills . | . . Allies Corrupted . | . . Allies Melted . | . . Intel | -11 -10 ------- Run | Yrd Mat Active Infowar (turns) 262 | 54 208 Terrain 262 | 54 208 Robot Analysis Total . | . . Derelict Logs Recovered . | . . Drone Launches . | . . Drone Recoveries . | . . Exploration | -11 -10 ------------- Run | Yrd Mat Turns Passed 370 | 96 274 Spaces Moved 245 | 64 181 Core 16 | 11 5 Treads . | . . Legs . | . . Wheels 229 | 53 176 Hover . | . . Flight . | . . Fastest Speed 50 | 50 80 Average Speed 80 | 76 81 Slowest Speed 150 | 90 150 Overloaded Moves . | . . Propulsion Burnouts . | . . Robots Hopped . | . . Potential Cave-ins . | . . Cave-ins Triggered . | . . Exploration Rate (%) 22 | 4 41 Regions Visited 1 Branch Regions . Pre-discovered Areas . | . . Known Exits Taken . | . . Unknown Exits Taken 1 | 1 . Scrap Searched . | . . Spaces Dug . | . . Terrain Destroyed . | . . Melee . | . . Projectile . | . . AOE . | . . Terrain Rammed . | . . Walls Destroyed . | . . Machines Disabled . | . . Actions | -11 -10 --------- Run | Yrd Mat Total 346 | 91 255 Wait 1 | . 1 Move 244 | 63 181 Hop . | . . Pick Up 12 | 11 1 Fast Attach 1 | 1 . Attach 9 | 6 3 Detach . | . . Swap 2 | 1 1 Drop . | . . Fire 38 | 9 29 Melee . | . . Ram 39 | . 39 Kick . | . . Crush . | . . Escape Stasis . | . . Rewire . | . . Trap . | . . Miscellaneous . | . . Route ------- -11/Scrapyard -10/Materials (discovered 2 exits: [*Mat] / [*Min]) History --------- Turn | Location | Event 34 | -11/Scrapyard | Discovered new exit (range 15) 97 | -11/Scrapyard | Entered Materials 172 | -10/Materials | Discovered new exit (range 12) 289 | -10/Materials | Discovered new exit (range 15) 307 | -10/Materials | Build established: Mutant 331 | -10/Materials | Core integrity fell below 50% 358 | -10/Materials | Core integrity fell below 20% 371 | -10/Materials | Destroyed by G-34 Mercenary with Small Laser Last Messages --------------- 00348_ Slammed into G-34 Mercenary. 00351_ Acquired 5 matter. 00351_ Slammed into G-34 Mercenary. 00352_ Wheel broken. 00352_ Destabilizing: Short circuit. 00353_ Slammed into G-34 Mercenary. 00355_ R-06 Scavenger collects Aluminum Leg. 00355_ Broken Wheel destroyed. 00356_ Slammed into G-34 Mercenary. 00357_ Destabilizing: Core damaged (-12). 00358_ Slammed into G-34 Mercenary. 00358_ R-06 Scavenger collects Ion Engine. 00359_ Slammed into G-34 Mercenary. 00364_ Destabilizing: System corrupted (+2). 00365_ Slammed into G-34 Mercenary. 00366_ Wheel broken. 00366_ Destabilizing: Short circuit. 00367_ Slammed into G-34 Mercenary. 00367_ G-34 Mercenary knocked back. 00368_ Slammed into G-34 Mercenary. Map ----- +----------------------------------------------------+ | ????????? #??????????? ??????????######## ## | | ????????? #????????????????#?????# """ # # | | ?????????# #?????? ???????????????# """ # # | | ?????????# #??????????????????????# """ # # | | ?????????# #?????????? ???????#??# # # | | ?????????# #???? ?????????????????# + + | | ?????????# #??????????? ??????????# ! # # | | ?????????# #???? ? ???????????????###+#### ## | | ?????????# #???????????????????????## ### # | | ?????????# ######################### " # | | ?????????# % "T # | | ????+##### % # | | ???# % ## # | | ######/####/###################### ####+### | | ????????# # """??#?????????????# #??????? | | ????????# # """"" #?#???????????# #??????? | | ????????# " # """"" #???##???????##% ##?????? | | ????????#""" # """"" #???????###### #?????? | | ????????#""" # """ ######### # | | ??? ????#""" # # # # | | ? ??????# "" =# # # # | | ????????#""" + # # ## # | | ????????#"" # # # ######## | | ???????##"" ###+###### # #??????####### | | ????????# " #?# #????#%g + #????????#???? | | ????????# #?#%##???#@m # #?#??????????? | | ????????# #?# ######% #####????????????? | | ????????########?# %%%%%+% #############????? | | ?????????????????#%%##### + ###### | | ?????????????#####% #???# ##### # | | ?????????????# %%% #???#########???# # | | ?????#???????# % =#???????????????# # | | ???????????? # [%|%#???????????????###### # | | ?????????????# = !#???????????########## # "T" | | ?????????????# #???????????# + + """ | | ?????????????# # =% !#??????# [!! # ###### | | ?????????????# # [ !##??????# [!! # ### | | ?????????????# # ####???????#! !! # | | ?????????????# # #???????#??# + | | ?????????????# # #??????????# """ # | | ?????????????# ## ##??????????# """ ###/## | | ??????#??????# ## #???????????# """ ## ## | | ????????????? ## +???????????# ### ## | | ????????????? ## < #???????????##########? ?# | | ????????????? ?# #? ???????????#?????????##?# | | ????????????? ??####??????????????????????????# | | ????????????? ????????????????????????????????### | | ????????????? ??????????????????????????????????? | | ????????????? ??????????????????????????????????? | | ?????????????#+??????????????????????????????????? | +----------------------------------------------------+ Best States ------------- Heat Dissipation 25 Energy Generation 10 Energy Capacity 250 Matter Stores 300 Matter Capacity 300 Sight Range 16 Terrain Scan Range 16 Terrain Scan Density 10 Evasion (%) 50 Item Schematics ----------------- None Robot Schematics ------------------ None Fabricated ------------ Nothing Repaired ---------- Nothing Studied --------- None Alien Tech Used ----------------- None Achievements -------------- Fist Fight Challenges ------------ None Game ------ Seed TeleporterGhostFlail Manual? 0 Play Time 00:06:44 Cumulative 18.2 hours Start 2026.02.14 @ 19:38:07 End 2026.02.14 @ 19:43:47 Sessions 1 Manual Loads 0 Difficulty Rogue Special Mode None Game No. 22 Rogue 22 Adventurer 0 Explorer 0 Win Type - Total 0 Types 0/0/0/0/0/0/0/0/0/0 Lore% 12 Gallery% 18 Achievement% 15 Wizard Run 0 Options --------- Layout 1 ASCII 0 Keyboard 0 Movement Mouse Keybinds 0 Fullscreen 1 Font 32/SmallcapsGlow Map View 77x35 Zoom Use 0% Tactical HUD 1 Map Filters NONE Filters NONE Steam 1 RUN: 04eda56f-cc3f-4a9a-8af0-094dc5eb1f49